fUST/lending_fUST_20251023
["ID","MTS","AMOUNT","RATE_DAILY","PERIOD"]
[392151035,1761214238995,-293.75985228,0.0002509,2]
[392151037,1761214239006,-151.0,0.00025144,2]
[392151039,1761214239015,-500.0,0.00025164,2]
[392151041,1761214239026,-170.28173664,0.00025199,2]
[392151043,1761214239035,-4170.2187319,0.00025243,2]
[392151045,1761214239045,-500.0,0.00025383,2]
[392151047,1761214239055,-1000.0,0.00025383,2]
[392151049,1761214239064,-1000.0,0.00025383,2]
[392151051,1761214239073,-1000.0,0.00025383,2]
[392151053,1761214239082,-1000.0,0.00025383,2]
[392151055,1761214239092,-1000.0,0.00025383,2]
[392151057,1761214239101,-1005.27,0.00025385,2]
[392151059,1761214239111,-300.0,0.00025386,20]
[392151061,1761214239120,-300.0,0.00025386,20]
[392151063,1761214239129,-300.0,0.00025386,20]
[392151064,1761214239138,-300.0,0.00025386,20]
[392151066,1761214239151,-300.0,0.00025386,20]
[392151068,1761214239160,-300.0,0.00025386,20]
[392151070,1761214239170,-300.0,0.00025386,20]
[392151072,1761214239179,-300.0,0.00025386,20]
[392151074,1761214239189,-300.0,0.00025386,20]
[392151076,1761214239200,-300.0,0.00025386,20]
[392151078,1761214239210,-300.0,0.00025386,20]
[392151080,1761214239220,-300.0,0.00025386,20]
[392151082,1761214239229,-300.0,0.00025386,20]
[392151084,1761214239239,-300.0,0.00025386,20]
[392151086,1761214239249,-300.0,0.00025386,20]
[392151088,1761214239259,-500.0,0.00025386,20]
[392151090,1761214239269,-151.0,0.00025386,20]
[392151092,1761214239278,-444.0,0.00025386,20]
[392151094,1761214239288,-151.46458228,0.00025386,20]
[392151096,1761214239297,-151.0,0.00025386,14]
[392151098,1761214239306,-278.07647929,0.00025386,20]
[392151100,1761214239315,-151.35141846,0.00025386,20]
[392151102,1761214239325,-1000.0,0.00025421,2]
[392151103,1761214239335,-1000.0,0.00025421,2]
[392151105,1761214239344,-1000.0,0.00025421,2]
[392151107,1761214239354,-1000.0,0.00025421,2]
[392151109,1761214239365,-1000.0,0.00025421,2]
[392151111,1761214239374,-1000.0,0.00025421,2]
[392151113,1761214239385,-1043.30389971,0.00025421,2]
[392151115,1761214239396,-719.33073743,0.00025421,2]
[392151117,1761214239407,-334.96234492,0.00025421,2]
[392151119,1761214239417,-1000.0,0.00025421,2]
[392151121,1761214239428,-1000.0,0.00025421,2]
[392151123,1761214239437,-1000.0,0.00025421,2]
[392151125,1761214239447,-1000.0,0.00025421,2]
[392151127,1761214239456,-1000.0,0.00025421,2]
[392151130,1761214239466,-1000.0,0.00025421,2]
[392151132,1761214239476,-1000.0,0.00025421,2]
[392151134,1761214239485,-1000.0,0.00025421,2]
[392151135,1761214239495,-1000.0,0.00025421,2]
[392151137,1761214239504,-1000.0,0.00025421,2]
[392151139,1761214239514,-500.0,0.00025438,2]
[392151141,1761214239524,-500.0,0.00025441,20]
[392151143,1761214239533,-151.0,0.00025441,20]
[392151145,1761214239542,-444.0,0.00025441,20]
[392151147,1761214239551,-151.0,0.00025441,14]
[392151149,1761214239560,-500.0,0.00025496,20]
[392151151,1761214239570,-201.74549163,0.00025496,20]
[392151153,1761214239579,-444.0,0.00025496,20]
[392151155,1761214239588,-199.33539142,0.00025496,14]
[392151157,1761214239597,-1000.0,0.00025521,2]
[392151159,1761214239607,-1001.9168495,0.00025521,2]
[392151161,1761214239616,-1000.0,0.00025521,2]
[392151163,1761214239626,-1000.0,0.00025521,2]
[392151165,1761214239640,-1000.0,0.00025521,2]
[392151167,1761214239649,-1000.0,0.00025521,2]
[392151169,1761214239659,-659.52989543,0.00025521,2]
[392151171,1761214239668,-1000.0,0.00025521,2]
[392151173,1761214239677,-298.88,0.00025532,2]
[392151175,1761214239686,-500.0,0.0002555,20]
[392151177,1761214239695,-444.0,0.0002555,20]
[392151179,1761214239704,-500.0,0.00025605,20]
[392151181,1761214239714,-444.0,0.00025605,20]
[392151183,1761214239723,-250.0,0.0002562,2]
[392151185,1761214239732,-386.01082697,0.0002566,20]
[392151187,1761214239742,-444.0,0.0002566,20]
[392151189,1761214239751,-4170.2187319,0.00025695,2]
[392151191,1761214239760,-500.0,0.00025712,2]
[392151193,1761214239769,-444.0,0.00025715,20]
[392151195,1761214239787,-444.0,0.0002577,20]
[392151197,1761214239795,-444.0,0.00025824,20]
[392151199,1761214239805,-424.47671109,0.00025878,2]
[392151201,1761214239815,-444.0,0.00025879,20]
[392151203,1761214239824,-600.0,0.00025893,20]
[392151205,1761214239833,-407.0,0.00025895,2]
[392151207,1761214239843,-420.0,0.00025895,2]
[392151209,1761214239853,-1680.0,0.00025897,2]
[392151211,1761214239862,-325.0,0.00025898,2]
[392151213,1761214239872,-420.0,0.00025898,2]
[392151215,1761214239881,-420.0,0.00025898,2]
[392151217,1761214239891,-151.0,0.000259,16]
[392151219,1761214239900,-161.586401,0.0002592,2]
[392151221,1761214239909,-444.0,0.00025934,20]
[392151222,1761214239918,-1005.27,0.00025963,2]
[392151224,1761214239927,-604.58,0.00025964,2]
[392151226,1761214239937,-500.0,0.00025964,2]
[392151228,1761214239946,-500.0,0.00025964,2]
[392151230,1761214239956,-948.48786724,0.00025964,2]
[392151232,1761214239965,-151.0,0.00025965,2]
[392151234,1761214239975,-151.0,0.00025965,2]
[392151236,1761214239984,-500.0,0.00025965,2]
[392151238,1761214239993,-151.0,0.00025965,2]
[392151249,1761214240082,-151.0,0.00025965,2]
[392151251,1761214240091,-151.0,0.00025965,2]
[392151253,1761214240100,-500.0,0.00025965,2]
[392151255,1761214240110,-500.0,0.00025965,2]
[392151257,1761214240120,-207.60724146,0.00025965,2]
[392151259,1761214240129,-152.0600537,0.00025965,2]
[392151261,1761214240139,-500.0,0.00025965,2]
[392151263,1761214240150,-500.0,0.00025965,2]
[392151265,1761214240161,-151.0,0.00025965,2]
[392151267,1761214240170,-151.0,0.00025965,2]
[392151269,1761214240180,-285.13277577,0.00025965,2]
[392151271,1761214240189,-151.0,0.00025965,2]
[392151272,1761214240198,-151.0,0.00025965,2]
[392151274,1761214240207,-151.0,0.00025965,2]
[392151277,1761214240217,-202.02370346,0.00025965,2]
[392151278,1761214240229,-151.0,0.00025965,2]
[392151280,1761214240238,-1005.27,0.00025967,2]
[392151282,1761214240247,-1000.0,0.00025968,2]
[392151284,1761214240257,-1000.0,0.00025968,2]
[392151286,1761214240266,-1000.0,0.00025968,2]
[392151288,1761214240275,-1000.0,0.00025968,2]
[392151290,1761214240284,-1000.0,0.00025968,2]
[392151292,1761214240293,-1000.0,0.00025968,2]
[392151294,1761214240313,-1000.0,0.00025968,2]
[392151295,1761214240323,-1000.0,0.00025968,2]
[392151296,1761214240333,-1000.0,0.00025968,2]
[392151297,1761214240343,-1000.0,0.00025968,2]
[392151298,1761214240353,-1000.0,0.00025968,2]
[392151299,1761214240362,-1000.0,0.00025968,2]
[392151300,1761214240372,-1000.0,0.00025968,2]
[392151301,1761214240382,-1000.0,0.00025968,2]
[392151302,1761214240391,-1000.0,0.00025968,2]
[392151303,1761214240401,-1000.0,0.00025968,2]
[392151304,1761214240411,-1000.0,0.00025968,2]
[392151305,1761214240420,-1000.0,0.00025968,2]
[392151307,1761214240430,-1000.0,0.00025968,2]
[392151309,1761214240439,-1000.0,0.00025968,2]
[392151311,1761214240450,-1500.0,0.00025968,2]
[392151313,1761214240460,-459.24520816,0.00025968,2]
[392151316,1761214240470,-645.585206,0.00025968,2]
[392151318,1761214240480,-1500.0,0.00025968,2]
[392151320,1761214240489,-1500.0,0.00025968,2]
[392151322,1761214240498,-1193.49122843,0.00025968,2]
[392151324,1761214240508,-822.44706909,0.00025968,2]
[392151326,1761214240517,-236.02755696,0.00025968,2]
[392151328,1761214240527,-1500.0,0.00025968,2]
[392151330,1761214240539,-1500.0,0.00025968,2]
[392151332,1761214240548,-1500.0,0.00025968,2]
[392151334,1761214240558,-537.35341875,0.00025968,2]
[392151336,1761214240567,-1500.0,0.00025968,2]
[392151338,1761214240577,-1500.0,0.00025968,2]
[392151340,1761214240586,-1500.0,0.00025968,2]
[392151342,1761214240595,-1500.0,0.00025968,2]
[392151344,1761214240604,-508.33463292,0.00025973,2]
[392151346,1761214240614,-500.0,0.00025973,2]
[392151348,1761214240623,-500.0,0.00025973,2]
[392151350,1761214240633,-500.0,0.00025973,2]
[392151352,1761214240642,-500.0,0.00025973,2]
[392151354,1761214240654,-500.0,0.00025973,2]
[392151356,1761214240664,-500.0,0.00025973,2]
[392151358,1761214240673,-342.77490424,0.00025973,2]
[392151360,1761214240683,-500.0,0.00025973,2]
[392151362,1761214240692,-500.0,0.00025973,2]
[392151364,1761214240701,-500.0,0.00025973,2]
[392151366,1761214240711,-406.34751606,0.00025973,2]
[392151368,1761214240720,-500.0,0.00025973,2]
[392151370,1761214240730,-500.0,0.00025973,2]
[392151372,1761214240739,-500.0,0.00025973,2]
[392151374,1761214240748,-500.0,0.00025973,2]
[392151376,1761214240758,-500.0,0.00025973,2]
[392151378,1761214240768,-500.0,0.00025973,2]
[392151380,1761214240777,-500.0,0.00025973,2]
[392151382,1761214240786,-500.0,0.00025973,2]
[392151384,1761214240795,-500.0,0.00025973,2]
[392151386,1761214240804,-500.0,0.00025973,2]
[392151388,1761214240813,-500.0,0.00025973,2]
[392151390,1761214240822,-500.0,0.00025973,2]
[392151392,1761214240831,-500.0,0.00025973,2]
[392151394,1761214240840,-500.0,0.00025973,2]
[392151396,1761214240849,-500.0,0.00025973,2]
[392151398,1761214240859,-500.0,0.00025973,2]
[392151400,1761214240869,-500.0,0.00025973,2]
[392151402,1761214240878,-500.0,0.00025973,2]
[392151404,1761214240888,-500.0,0.00025973,2]
[392151406,1761214240897,-500.0,0.00025973,2]
[392151408,1761214240906,-500.0,0.00025973,2]
[392151410,1761214240915,-162.07750316,0.00025973,2]
[392151412,1761214240924,-500.0,0.00025973,2]
[392151414,1761214240933,-500.0,0.00025973,2]
[392151416,1761214240943,-500.0,0.00025973,2]
[392151418,1761214240952,-500.0,0.00025973,2]
[392151420,1761214240962,-500.0,0.00025973,2]
[392151422,1761214240971,-1005.27,0.00025977,2]
[392151424,1761214240981,-500.0,0.00025978,2]
[392151427,1761214240993,-500.0,0.00025978,2]
[392151429,1761214241002,-500.0,0.00025978,2]
[392151431,1761214241012,-199.0,0.00025978,2]
[392151433,1761214241022,-1005.27,0.00025978,2]
[392151435,1761214241031,-1005.27,0.00025978,2]
[392151437,1761214241040,-1005.27,0.00025978,2]
[392151439,1761214241050,-1005.27,0.00025978,2]
[392151441,1761214241059,-1005.27,0.00025978,2]
[392151443,1761214241068,-1005.27,0.00025979,2]
[392151445,1761214241079,-1005.27,0.00025979,2]
[392151447,1761214241088,-1005.27,0.00025979,2]
[392151449,1761214241097,-1005.27,0.00025979,2]
[392151451,1761214241107,-1005.27,0.00025979,2]
[392151453,1761214241116,-1005.27,0.00025979,2]
[392151455,1761214241125,-1005.27,0.00025979,2]
[392151457,1761214241134,-1005.46830235,0.00025979,2]
[392151459,1761214241144,-444.0,0.00025989,20]
[392151461,1761214241157,-1680.0,0.00026014,2]
[392151463,1761214241167,-151.0,0.0002602,2]
[392151465,1761214241177,-181.85491574,0.0002602,2]
[392151467,1761214241187,-543.53490704,0.0002602,2]
[392151469,1761214241196,-153.30956163,0.0002602,2]
[392151471,1761214241205,-187.77195116,0.0002602,2]
[392151473,1761214241214,-151.0,0.0002602,2]
[392151475,1761214241224,-500.0,0.0002602,2]
[392151477,1761214241233,-151.0,0.0002602,2]
[392151479,1761214241243,-151.0,0.0002602,2]
[392151481,1761214241253,-153.08173474,0.0002602,2]
[392151483,1761214241262,-160.0,0.00026023,2]
[392151485,1761214241271,-444.0,0.00026044,20]
[392151487,1761214241280,-1500.0,0.00026068,2]
[392151489,1761214241289,-202.16351752,0.00026075,2]
[392151491,1761214241298,-151.0,0.00026075,2]
[392151493,1761214241307,-151.0,0.00026075,2]
[392151495,1761214241317,-151.0,0.00026075,2]
[392151497,1761214241326,-444.0,0.00026098,20]
[392151499,1761214241336,-151.0,0.000261,13]
[392151501,1761214241345,-725.64,0.00026109,3]
[392151503,1761214241354,-1451.3,0.00026119,3]
[392151505,1761214241363,-151.0,0.00026129,2]
[392151506,1761214241373,-260.62527282,0.00026129,2]
[392151508,1761214241382,-4170.2187319,0.00026148,2]
[392151510,1761214241392,-444.0,0.00026153,20]
[392151512,1761214241401,-500.82046865,0.00026158,2]
[392151514,1761214241410,-362.82,0.00026176,3]
[392151517,1761214241420,-151.0,0.00026184,2]
[392151518,1761214241429,-654.54500185,0.00026184,2]
[392151521,1761214241438,-444.0,0.00026208,20]
[392151522,1761214241447,-205.16142218,0.00026239,2]
[392151524,1761214241456,-444.0,0.00026263,20]
[392151527,1761214241466,-444.0,0.00026318,20]
[392151528,1761214241475,-444.0,0.00026372,20]
[392151531,1761214241485,-444.0,0.00026427,20]
[392151532,1761214241494,-444.0,0.00026482,20]
[392151535,1761214241503,-348.69,0.00026514,2]
[392151537,1761214241514,-2000.0,0.00026516,2]
[392151539,1761214241523,-1714.99474815,0.00026516,2]
[392151541,1761214241532,-2000.0,0.00026516,2]
[392151543,1761214241544,-1275.98832958,0.00026516,2]
[392151545,1761214241554,-2000.0,0.00026516,2]
[392151547,1761214241564,-2000.0,0.00026516,2]
[392151549,1761214241573,-2000.0,0.00026516,2]
[392151551,1761214241583,-2000.0,0.00026516,2]
[392151553,1761214241592,-1500.0,0.00026516,2]
[392151555,1761214241601,-2000.0,0.00026516,2]
[392151557,1761214241611,-1002.88994788,0.00026521,2]
[392151559,1761214241620,-1000.0,0.00026521,2]
[392151561,1761214241630,-1000.0,0.00026521,2]
[392151563,1761214241640,-1000.0,0.00026521,2]
[392151565,1761214241649,-1000.0,0.00026521,2]
[392151567,1761214241658,-1000.0,0.00026521,2]
[392151569,1761214241667,-374.71343951,0.00026521,2]
[392151571,1761214241676,-1048.97049182,0.00026521,2]
[392151573,1761214241685,-1000.0,0.00026521,2]
[392151575,1761214241694,-1000.0,0.00026521,2]
[392151586,1761214241776,-1000.0,0.00026521,2]
[392151588,1761214241795,-510.72948539,0.00026521,2]
[392151590,1761214241804,-1000.0,0.00026521,2]
[392151592,1761214241813,-1000.0,0.00026521,2]
[392151594,1761214241823,-589.70909596,0.00026521,2]
[392151596,1761214241833,-240.83846751,0.00026521,2]
[392151598,1761214241842,-1000.0,0.00026521,2]
[392151600,1761214241851,-1000.0,0.00026521,2]
[392151602,1761214241861,-1000.0,0.00026521,2]
[392151605,1761214241871,-1000.0,0.00026521,2]
[392151607,1761214241880,-1000.0,0.00026521,2]
[392151609,1761214241890,-1007.10721589,0.00026521,2]
[392151611,1761214241899,-1000.0,0.00026521,2]
[392151613,1761214241909,-1000.0,0.00026521,2]
[392151615,1761214241918,-1000.0,0.00026521,2]
[392151617,1761214241927,-506.90143914,0.00026521,2]
[392151619,1761214241936,-416.93481961,0.00026521,2]
[392151621,1761214241944,-1000.0,0.00026521,2]
[392151623,1761214241953,-1000.0,0.00026521,2]
[392151625,1761214241962,-444.0,0.00026537,20]
[392151627,1761214241971,-217.17788939,0.00026571,2]
[392151629,1761214241980,-260.0,0.00026571,2]
[392151631,1761214241989,-444.0,0.00026591,20]
[392151633,1761214241998,-4170.2187319,0.000266,2]
[392151635,1761214242007,-2000.0,0.00026616,2]
[392151637,1761214242017,-455.73698823,0.00026646,20]
[392151639,1761214242026,-285.571394,0.00026676,2]
[392151641,1761214242035,-27170.86,0.000267,7]
[392151643,1761214242044,-151.0,0.000267,7]
[392151645,1761214242054,-151.0,0.000267,7]
[392151647,1761214242063,-677.415532,0.000267,7]
[392151649,1761214242072,-677.415532,0.000267,7]
[392151651,1761214242082,-151.0,0.000267,7]
[392151653,1761214242091,-677.415532,0.000267,7]
[392151655,1761214242099,-677.415532,0.000267,7]
[392151657,1761214242108,-348.959647,0.000267,7]
[392151659,1761214242117,-348.959647,0.000267,7]
[392151660,1761214242126,-151.0,0.000267,7]
[392151662,1761214242135,-348.959647,0.000267,7]
[392151665,1761214242144,-151.0,0.000267,7]
[392151666,1761214242156,-348.959647,0.000267,7]
[392151668,1761214242165,-151.0,0.000267,7]
[392151670,1761214242174,-10000.0,0.000267,7]
[392151672,1761214242183,-151.0,0.000267,7]
[392151674,1761214242193,-10000.0,0.000267,7]
[392151676,1761214242203,-633.33778,0.000267,7]
[392151678,1761214242211,-633.33778,0.000267,7]
[392151680,1761214242221,-151.0,0.000267,7]
[392151682,1761214242230,-633.33778,0.000267,7]
[392151684,1761214242239,-151.0,0.000267,7]
[392151686,1761214242249,-633.33778,0.000267,7]
[392151688,1761214242257,-151.0,0.000267,7]
[392151690,1761214242267,-151.0,0.000267,7]
[392151692,1761214242275,-151.440173,0.000267,7]
[392151694,1761214242285,-156.456194,0.000267,7]
[392151696,1761214242294,-151.0,0.000267,7]
[392151698,1761214242303,-219.186246,0.000267,7]
[392151700,1761214242312,-151.0,0.000267,7]
[392151702,1761214242321,-151.0,0.000267,7]
[392151704,1761214242330,-219.186246,0.000267,7]
[392151706,1761214242339,-151.0,0.000267,7]
[392151708,1761214242348,-151.0,0.000267,7]
[392151710,1761214242357,-219.186246,0.000267,7]
[392151712,1761214242366,-219.186246,0.000267,7]
[392151714,1761214242374,-151.0,0.000267,7]
[392151716,1761214242383,-151.0,0.000267,7]
[392151718,1761214242392,-151.0,0.000267,7]
[392151720,1761214242401,-151.0,0.000267,7]
[392151722,1761214242410,-151.0,0.000267,7]
[392151724,1761214242419,-151.0,0.000267,7]
[392151726,1761214242428,-151.0,0.000267,7]
[392151728,1761214242437,-728.227748,0.000267,7]
[392151730,1761214242446,-151.0,0.000267,2]
[392151732,1761214242455,-151.0,0.000267,7]
[392151734,1761214242464,-728.227748,0.000267,7]
[392151736,1761214242473,-151.0,0.000267,2]
[392151737,1761214242482,-151.0,0.000267,7]
[392151738,1761214242491,-728.227748,0.000267,7]
[392151739,1761214242500,-151.0,0.000267,7]
[392151740,1761214242508,-728.227748,0.000267,7]
[392151741,1761214242517,-151.0,0.000267,7]
[392151742,1761214242526,-151.0,0.000267,7]
[392151743,1761214242535,-237.670546,0.000267,7]
[392151744,1761214242544,-151.0,0.000267,7]
[392151745,1761214242552,-971.890941,0.000267,7]
[392151746,1761214242562,-971.890941,0.000267,7]
[392151747,1761214242572,-237.670546,0.000267,7]
[392151749,1761214242583,-151.0,0.000267,7]
[392151751,1761214242592,-151.0,0.000267,7]
[392151753,1761214242602,-237.670546,0.000267,7]
[392151755,1761214242611,-971.890941,0.000267,7]
[392151757,1761214242620,-237.670546,0.000267,7]
[392151759,1761214242630,-971.890941,0.000267,7]
[392151761,1761214242639,-183.198921,0.000267,7]
[392151763,1761214242648,-183.198921,0.000267,7]
[392151765,1761214242657,-183.198921,0.000267,7]
[392151767,1761214242666,-183.198921,0.000267,7]
[392151769,1761214242675,-151.0,0.000267,7]
[392151771,1761214242685,-151.0,0.000267,7]
[392151775,1761214242694,-151.0,0.000267,7]
[392151777,1761214242704,-151.0,0.000267,7]
[392151779,1761214242713,-151.0,0.000267,7]
[392151781,1761214242722,-151.0,0.000267,7]
[392151783,1761214242731,-1074.163462,0.000267,7]
[392151785,1761214242741,-151.0,0.000267,7]
[392151787,1761214242750,-1074.163462,0.000267,7]
[392151789,1761214242759,-1074.163462,0.000267,7]
[392151791,1761214242769,-151.0,0.000267,7]
[392151793,1761214242779,-151.0,0.000267,7]
[392151795,1761214242789,-1074.163462,0.000267,7]
[392151798,1761214242799,-151.0,0.000267,7]
[392151800,1761214242809,-339.399069,0.000267,7]
[392151802,1761214242819,-151.0,0.000267,7]
[392151804,1761214242827,-339.399069,0.000267,7]
[392151806,1761214242837,-151.0,0.000267,7]
[392151807,1761214242846,-339.399069,0.000267,7]
[392151809,1761214242856,-151.0,0.000267,7]
[392151812,1761214242865,-155.622797,0.000267,7]
[392151814,1761214242875,-151.0,0.000267,7]
[392151816,1761214242885,-339.399069,0.000267,7]
[392151818,1761214242894,-379.567472,0.000267,7]
[392151820,1761214242903,-379.567472,0.000267,7]
[392151822,1761214242913,-700.340436,0.000267,7]
[392151824,1761214242922,-379.567472,0.000267,7]
[392151826,1761214242932,-151.0,0.000267,7]
[392151828,1761214242942,-700.340436,0.000267,7]
[392151830,1761214242952,-151.0,0.000267,7]
[392151832,1761214242961,-379.567472,0.000267,7]
[392151834,1761214242970,-151.0,0.000267,7]
[392151836,1761214242980,-700.340436,0.000267,7]
[392151838,1761214242989,-151.0,0.000267,7]
[392151840,1761214242998,-700.340436,0.000267,7]
[392151841,1761214243007,-369.066472,0.000267,7]
[392151843,1761214243016,-160.174814,0.000267,7]
[392151845,1761214243025,-369.066472,0.000267,7]
[392151847,1761214243034,-160.174814,0.000267,7]
[392151849,1761214243044,-160.174814,0.000267,7]
[392151851,1761214243053,-369.066472,0.000267,7]
[392151853,1761214243062,-369.066472,0.000267,7]
[392151855,1761214243072,-151.0,0.000267,7]
[392151857,1761214243082,-160.174814,0.000267,7]
[392151859,1761214243091,-151.489662,0.000267,7]
[392151861,1761214243100,-151.0,0.000267,7]
[392151863,1761214243109,-151.0,0.000267,7]
[392151865,1761214243120,-151.0,0.000267,7]
[392151867,1761214243131,-151.0,0.000267,7]
[392151869,1761214243141,-155.339619,0.000267,7]
[392151871,1761214243150,-159.0,0.00026712,21]
[392151873,1761214243159,-897.73542021,0.00026817,2]
[392151875,1761214243170,-151.0,0.0002698,7]
[392151877,1761214243179,-151.0,0.0002698,7]
[392151879,1761214243189,-171.857786,0.0002698,7]
[392151881,1761214243198,-157.374066,0.0002698,7]
[392151883,1761214243207,-427.313742,0.0002698,7]
[392151885,1761214243216,-427.313742,0.0002698,7]
[392151887,1761214243226,-1327.460076,0.0002698,7]
[392151896,1761214243235,-427.313742,0.0002698,7]
[392151898,1761214243313,-1327.460076,0.0002698,7]
[392151901,1761214243323,-427.313742,0.0002698,7]
[392151903,1761214243333,-1327.460076,0.0002698,7]
[392151905,1761214243342,-166.180347,0.0002698,7]
[392151907,1761214243351,-1327.460076,0.0002698,7]
[392151909,1761214243361,-166.180347,0.0002698,7]
[392151911,1761214243370,-166.180347,0.0002698,7]
[392151913,1761214243379,-166.180347,0.0002698,7]
[392151915,1761214243389,-364.276191,0.0002698,7]
[392151917,1761214243398,-364.276191,0.0002698,7]
[392151919,1761214243407,-364.276191,0.0002698,7]
[392151921,1761214243417,-364.276191,0.0002698,7]
[392151923,1761214243426,-151.0,0.0002698,7]
[392151925,1761214243435,-151.0,0.0002698,7]
[392151927,1761214243445,-280.735566,0.0002698,7]
[392151929,1761214243454,-151.0,0.0002698,7]
[392151931,1761214243463,-280.735566,0.0002698,7]
[392151933,1761214243478,-280.735566,0.0002698,7]
[392151935,1761214243487,-151.0,0.0002698,7]
[392151937,1761214243496,-280.735566,0.0002698,7]
[392151939,1761214243505,-153.144065,0.0002698,7]
[392151941,1761214243515,-151.0,0.0002698,7]
[392151943,1761214243524,-197.930796,0.0002698,7]
[392151945,1761214243533,-209.684042,0.0002698,7]
[392151947,1761214243542,-151.0,0.0002698,7]
[392151949,1761214243551,-200.255539,0.0002698,7]
[392151951,1761214243559,-197.930796,0.0002698,7]
[392151953,1761214243568,-513.319864,0.0002698,7]
[392151955,1761214243578,-209.684042,0.0002698,7]
[392151957,1761214243587,-158.45603,0.0002698,7]
[392151959,1761214243596,-200.255539,0.0002698,7]
[392151961,1761214243604,-513.319864,0.0002698,7]
[392151963,1761214243616,-209.684042,0.0002698,7]
[392151965,1761214243625,-197.930796,0.0002698,7]
[392151967,1761214243634,-200.255539,0.0002698,7]
[392151969,1761214243643,-513.319864,0.0002698,7]
[392151971,1761214243653,-197.930796,0.0002698,7]
[392151973,1761214243662,-209.684042,0.0002698,7]
[392151975,1761214243671,-200.255539,0.0002698,7]
[392151977,1761214243681,-513.319864,0.0002698,7]
[392151979,1761214243689,-151.0,0.0002698,7]
[392151981,1761214243699,-164.803959,0.0002698,7]
[392151984,1761214243709,-393.438978,0.0002698,7]
[392151985,1761214243718,-209.526656,0.0002698,7]
[392151987,1761214243727,-393.438978,0.0002698,7]
[392151990,1761214243737,-209.526656,0.0002698,7]
[392151992,1761214243747,-393.438978,0.0002698,7]
[392151994,1761214243756,-151.0,0.0002698,7]
[392151996,1761214243765,-209.526656,0.0002698,7]
[392151998,1761214243774,-393.438978,0.0002698,7]
[392152000,1761214243783,-151.0,0.0002698,7]
[392152002,1761214243793,-209.526656,0.0002698,7]
[392152004,1761214243802,-151.0,0.0002698,7]
[392152006,1761214243810,-151.0,0.0002698,7]
[392152007,1761214243819,-151.0,0.0002698,7]
[392152009,1761214243828,-151.0,0.0002698,7]
[392152012,1761214243839,-151.0,0.0002698,7]
[392152014,1761214243848,-151.0,0.0002698,7]
[392152015,1761214243857,-166.719209,0.0002698,2]
[392152017,1761214243867,-166.719209,0.0002698,2]
[392152020,1761214243876,-166.719209,0.0002698,2]
[392152021,1761214243885,-236.476012,0.0002698,7]
[392152023,1761214243895,-166.719209,0.0002698,2]
[392152026,1761214243904,-236.476012,0.0002698,7]
[392152027,1761214243913,-236.476012,0.0002698,7]
[392152029,1761214243923,-236.476012,0.0002698,7]
[392152031,1761214243932,-151.0,0.0002698,7]
[392152033,1761214243942,-1016.850283,0.0002698,7]
[392152035,1761214243951,-151.0,0.0002698,7]
[392152037,1761214243961,-151.0,0.0002698,7]